Workbook

Sheet Calcbench Export
A1: Exported from Calcbench
A3: Year | B3: 2015
B4: values highlighted in yellow can be changed
A5: Data
A6: Company | B6: Ticker | C6: PropertyPlantAndEquipmentGross | D6: AccumulatedDepreciationDepletionAndAmortizationPropertyPlantAndEquipment | E6: PPE | F6: DepreciationAmortization
A7: Abbott Laboratories | B7: abt | C7: =_xll.CalcbenchData(C$6, $B7, $B$3,"y") -> 12383000000 | D7: =_xll.CalcbenchData(D$6, $B7, $B$3,"y") -> 6653000000 | E7: =_xll.CalcbenchData(E$6, $B7, $B$3,"y") -> 5730000000 | F7: =_xll.CalcbenchData(F$6, $B7, $B$3,"y") -> 1472000000
A8: AbbVie Inc. | B8: abbv | C8: =_xll.CalcbenchData(C$6, $B8, $B$3,"y") -> 7334000000 | D8: =_xll.CalcbenchData(D$6, $B8, $B$3,"y") -> 4769000000 | E8: =_xll.CalcbenchData(E$6, $B8, $B$3,"y") -> 2565000000 | F8: =_xll.CalcbenchData(F$6, $B8, $B$3,"y") -> 836000000
A9: Allergan Inc | B9: agn | C9: =_xll.CalcbenchData(C$6, $B9, $B$3,"y") -> 4017900000 | D9: =_xll.CalcbenchData(D$6, $B9, $B$3,"y") -> 1088400000 | E9: =_xll.CalcbenchData(E$6, $B9, $B$3,"y") -> 1531300000 | F9: =_xll.CalcbenchData(F$6, $B9, $B$3,"y") -> 7486500000
A10: Bristol Myers Squibb Co | B10: bmy | C10: =_xll.CalcbenchData(C$6, $B10, $B$3,"y") -> 8631000000 | D10: =_xll.CalcbenchData(D$6, $B10, $B$3,"y") -> 4219000000 | E10: =_xll.CalcbenchData(E$6, $B10, $B$3,"y") -> 4412000000 | F10: =_xll.CalcbenchData(F$6, $B10, $B$3,"y") -> 621000000
A11: Celgene Corp /DE/ | B11: celg | C11: =_xll.CalcbenchData(C$6, $B11, $B$3,"y") -> 1445600000 | D11: =_xll.CalcbenchData(D$6, $B11, $B$3,"y") -> 631500000 | E11: =_xll.CalcbenchData(E$6, $B11, $B$3,"y") -> 814100000 | F11: =_xll.CalcbenchData(F$6, $B11, $B$3,"y") -> 408900000
A12: Forest Laboratories Inc | B12: frx | C12: =_xll.CalcbenchData(C$6, $B12, $B$3,"y") ->  | D12: =_xll.CalcbenchData(D$6, $B12, $B$3,"y") ->  | E12: =_xll.CalcbenchData(E$6, $B12, $B$3,"y") ->  | F12: =_xll.CalcbenchData(F$6, $B12, $B$3,"y") -> 
A13: Hospira Inc | B13: hsp | C13: =_xll.CalcbenchData(C$6, $B13, $B$3,"y") ->  | D13: =_xll.CalcbenchData(D$6, $B13, $B$3,"y") ->  | E13: =_xll.CalcbenchData(E$6, $B13, $B$3,"y") ->  | F13: =_xll.CalcbenchData(F$6, $B13, $B$3,"y") -> 
A14: Johnson & Johnson | B14: jnj | C14: =_xll.CalcbenchData(C$6, $B14, $B$3,"y") -> 36648000000 | D14: =_xll.CalcbenchData(D$6, $B14, $B$3,"y") -> 20743000000 | E14: =_xll.CalcbenchData(E$6, $B14, $B$3,"y") -> 15905000000 | F14: =_xll.CalcbenchData(F$6, $B14, $B$3,"y") -> 3746000000
A15: Lilly Eli & Co | B15: lly | C15: =_xll.CalcbenchData(C$6, $B15, $B$3,"y") -> 16660900000 | D15: =_xll.CalcbenchData(D$6, $B15, $B$3,"y") -> 8607400000 | E15: =_xll.CalcbenchData(E$6, $B15, $B$3,"y") -> 8053500000 | F15: =_xll.CalcbenchData(F$6, $B15, $B$3,"y") -> 1427700000
A16: Merck & Co. Inc. | B16: MRK | C16: =_xll.CalcbenchData(C$6, $B16, $B$3,"y") -> 28430000000 | D16: =_xll.CalcbenchData(D$6, $B16, $B$3,"y") -> 15923000000 | E16: =_xll.CalcbenchData(E$6, $B16, $B$3,"y") -> 12507000000 | F16: =_xll.CalcbenchData(F$6, $B16, $B$3,"y") -> 6375000000
A17: Mylan Inc. | B17: myl | C17: =_xll.CalcbenchData(C$6, $B17, $B$3,"y") -> 3294000000 | D17: =_xll.CalcbenchData(D$6, $B17, $B$3,"y") -> 1310100000 | E17: =_xll.CalcbenchData(E$6, $B17, $B$3,"y") -> 1983900000 | F17: =_xll.CalcbenchData(F$6, $B17, $B$3,"y") -> 1131700000
A18: Nbty Inc | B18: nty | C18: =_xll.CalcbenchData(C$6, $B18, $B$3,"y") -> 866341000 | D18: =_xll.CalcbenchData(D$6, $B18, $B$3,"y") -> 260293000 | E18: =_xll.CalcbenchData(E$6, $B18, $B$3,"y") -> 605708000 | F18: =_xll.CalcbenchData(F$6, $B18, $B$3,"y") -> 154197000
A19: Pfizer Inc | B19: PFE | C19: =_xll.CalcbenchData(C$6, $B19, $B$3,"y") -> 27268000000 | D19: =_xll.CalcbenchData(D$6, $B19, $B$3,"y") -> 13502000000 | E19: =_xll.CalcbenchData(E$6, $B19, $B$3,"y") -> 13766000000 | F19: =_xll.CalcbenchData(F$6, $B19, $B$3,"y") -> 5157000000
A20: Teva Pharmaceutical Industries Ltd | B20: TEVA | C20: =_xll.CalcbenchData(C$6, $B20, $B$3,"y") -> 10073000000 | D20: =_xll.CalcbenchData(D$6, $B20, $B$3,"y") -> 3529000000 | E20: =_xll.CalcbenchData(E$6, $B20, $B$3,"y") -> 6544000000 | F20: =_xll.CalcbenchData(F$6, $B20, $B$3,"y") -> 1308000000
A21: Valeant Pharmaceuticals International, Inc. | B21: VRX | C21: =_xll.CalcbenchData(C$6, $B21, $B$3,"y") -> 2625800000 | D21: =_xll.CalcbenchData(D$6, $B21, $B$3,"y") -> 1184000000 | E21: =_xll.CalcbenchData(E$6, $B21, $B$3,"y") -> 1441800000 | F21: =_xll.CalcbenchData(F$6, $B21, $B$3,"y") -> 2772800000
A22: Zoetis Inc. | B22: ZTS | C22: =_xll.CalcbenchData(C$6, $B22, $B$3,"y") -> 2515000000 | D22: =_xll.CalcbenchData(D$6, $B22, $B$3,"y") -> 1208000000 | E22: =_xll.CalcbenchData(E$6, $B22, $B$3,"y") -> 1307000000 | F22: =_xll.CalcbenchData(F$6, $B22, $B$3,"y") -> 199000000
A24: Analysis
A25: Company | B25: Ticker | C25: Average age of PPE (years) | D25: Average remaning life of PPE (years)
A26: Abbott Laboratories | B26: abt | C26: =D7/F7 -> 4.519701087 | D26: =E7/F7 -> 3.892663043
A27: AbbVie Inc. | B27: abbv | C27: =D8/F8 -> 5.704545455 | D27: =E8/F8 -> 3.068181818
A28: Allergan Inc | B28: agn | C28: =D9/F9 -> 0.145381687 | D28: =E9/F9 -> 0.204541508
A29: Bristol Myers Squibb Co | B29: bmy | C29: =D10/F10 -> 6.793880837 | D29: =E10/F10 -> 7.104669887
A30: Celgene Corp /DE/ | B30: celg | C30: =D11/F11 -> 1.544387381 | D30: =E11/F11 -> 1.990951333
A31: Hospira Inc | B31: hsp | C31: =D13/F13 ->  | D31: =E13/F13 -> 
A32: Johnson & Johnson | B32: jnj | C32: =D14/F14 -> 5.537373198 | D32: =E14/F14 -> 4.245862253
A33: Lilly Eli & Co | B33: lly | C33: =D15/F15 -> 6.028857603 | D33: =E15/F15 -> 5.640890943
A34: Merck & Co. Inc. | B34: MRK | C34: =D16/F16 -> 2.49772549 | D34: =E16/F16 -> 1.961882353
A35: Mylan Inc. | B35: myl | C35: =D17/F17 -> 1.15763895 | D35: =E17/F17 -> 1.75302642
A36: Nbty Inc | B36: nty | C36: =D18/F18 -> 1.688054891 | D36: =E18/F18 -> 3.928143868
A37: Pfizer Inc | B37: PFE | C37: =D19/F19 -> 2.618188869 | D37: =E19/F19 -> 2.669381423
A38: Teva Pharmaceutical Industries Ltd | B38: TEVA | C38: =D20/F20 -> 2.698012232 | D38: =E20/F20 -> 5.003058104
A39: Valeant Pharmaceuticals International, Inc. | B39: VRX | C39: 0.4270051933 | D39: 0.5199798038
A40: Zoetis Inc. | B40: ZTS | C40: 6.070351759 | D40: 6.567839196
